[Event "*** Titled Tuesday Blitz"]
[Site "Chess.com"]
[Date "2018.05.01"]
[Round "1"]
[White "NormWeinstein"]
[Black "josmito10"]
[Result "0-1"]
[WhiteElo "2288"]
[BlackElo "2606"]
[TimeControl "180+2"]
[EndTime "13:10:43 PDT"]
[Termination "josmito10 won by resignation"]

1. e4 {[%clk 0:02:57.7]} 1... c5 {[%clk 0:02:58.7]} 2. Nf3 {[%clk 0:02:58.1]}
2... d6 {[%clk 0:02:59.6]} 3. Nc3 {[%clk 0:02:58.6]} 3... Nf6 {[%clk 0:03:01]}
4. e5 {[%clk 0:02:58.7]} 4... dxe5 {[%clk 0:03:02.3]} 5. Nxe5 {[%clk 0:02:59.5]}
5... Nbd7 {[%clk 0:03:03.7]} 6. Nc4 {[%clk 0:02:59.9]} 6... e6 {[%clk
0:03:03.4]} 7. g3 {[%clk 0:03:00.7]} 7... Be7 {[%clk 0:03:03.7]} 8. Bg2 {[%clk
0:03:01.4]} 8... O-O {[%clk 0:03:05.4]} 9. d3 {[%clk 0:03:02]} 9... Nb6 {[%clk
0:03:03.8]} 10. O-O {[%clk 0:03:02.4]} 10... Nbd5 {[%clk 0:02:55.8]} 11. a4
{[%clk 0:02:59.8]} 11... b6 {[%clk 0:02:54.2]} 12. a5 {[%clk 0:02:51.8]} 12...
Bb7 {[%clk 0:02:55]} 13. a6 {[%clk 0:02:48.2]} 13... Bc6 {[%clk 0:02:55.8]} 14.
Ne5 {[%clk 0:02:46.5]} 14... Be8 {[%clk 0:02:34.4]} 15. Nxd5 {[%clk 0:02:38.6]}
15... exd5 {[%clk 0:02:33.7]} 16. c4 {[%clk 0:02:34.7]} 16... Qc7 {[%clk
0:02:30.1]} 17. Bf4 {[%clk 0:02:26.6]} 17... Bd6 {[%clk 0:02:30.2]} 18. Re1
{[%clk 0:02:07.6]} 18... Rd8 {[%clk 0:02:24.4]} 19. cxd5 {[%clk 0:02:03.6]}
19... Bb5 {[%clk 0:02:01.1]} 20. Qb3 {[%clk 0:01:51.4]} 20... Bd7 {[%clk
0:01:53.8]} 21. d4 {[%clk 0:01:46.2]} 21... c4 {[%clk 0:01:43.4]} 22. Qxc4
{[%clk 0:01:36.5]} 22... Qxc4 {[%clk 0:01:36.3]} 23. Nxc4 {[%clk 0:01:37.3]}
23... Bxf4 {[%clk 0:01:35.4]} 24. gxf4 {[%clk 0:01:38.5]} 24... Bb5 {[%clk
0:01:33.3]} 25. Ne3 {[%clk 0:01:35.6]} 25... Nh5 {[%clk 0:01:18.2]} 26. f5
{[%clk 0:01:19.1]} 26... Nf4 {[%clk 0:01:17.5]} 27. Be4 {[%clk 0:01:19.8]} 27...
Bd3 {[%clk 0:01:14.1]} 28. f3 {[%clk 0:01:17.6]} 28... Bb5 {[%clk 0:01:08.7]}
29. Kf2 {[%clk 0:01:15.1]} 29... Nd3+ {[%clk 0:01:04.3]} 30. Bxd3 {[%clk
0:01:14.3]} 30... Bxd3 {[%clk 0:01:06.2]} 31. Rec1 {[%clk 0:01:14.5]} 31... Rd7
{[%clk 0:01:05.5]} 32. Rc3 {[%clk 0:01:11.7]} 32... Bb5 {[%clk 0:01:04.6]} 33.
Rac1 {[%clk 0:01:09.8]} 33... Bxa6 {[%clk 0:00:57.9]} 34. Rc7 {[%clk 0:01:07.5]}
34... Rfd8 {[%clk 0:00:58.8]} 35. f6 {[%clk 0:00:59.5]} 35... gxf6 {[%clk
0:00:53.2]} 36. Nf5 {[%clk 0:00:58.9]} 36... Kf8 {[%clk 0:00:53.5]} 37. Rxd7
{[%clk 0:00:55.4]} 37... Rxd7 {[%clk 0:00:54.1]} 38. d6 {[%clk 0:00:56.8]} 38...
Rd8 {[%clk 0:00:49.1]} 39. Rc7 {[%clk 0:00:53.2]} 39... Bd3 {[%clk 0:00:49.8]}
40. Nh6 {[%clk 0:00:53.1]} 40... Bg6 {[%clk 0:00:47.4]} 41. d7 {[%clk
0:00:49.4]} 41... Ke7 {[%clk 0:00:41.9]} 42. Rxa7 {[%clk 0:00:48.7]} 42... f5
{[%clk 0:00:36.4]} 43. Rc7 {[%clk 0:00:40.8]} 43... Rxd7 {[%clk 0:00:31.2]} 44.
Rxd7+ {[%clk 0:00:40.9]} 44... Kxd7 {[%clk 0:00:30.3]} 45. Ke3 {[%clk
0:00:39.4]} 45... Ke6 {[%clk 0:00:30.9]} 46. Kf4 {[%clk 0:00:37.2]} 46... f6
{[%clk 0:00:27.5]} 47. h4 {[%clk 0:00:32.4]} 47... b5 {[%clk 0:00:27.5]} 48. b4
{[%clk 0:00:32.1]} 48... Kd5 {[%clk 0:00:24.3]} 49. Nxf5 {[%clk 0:00:28.6]}
49... Kc4 {[%clk 0:00:23.5]} 50. d5 {[%clk 0:00:24.2]} 50... Kxd5 {[%clk
0:00:21.4]} 51. Ne7+ {[%clk 0:00:24.6]} 51... Kc4 {[%clk 0:00:22.7]} 52. Nc6
{[%clk 0:00:20.5]} 52... Be8 {[%clk 0:00:19.9]} 53. Na7 {[%clk 0:00:18.1]} 53...
Bd7 {[%clk 0:00:19.2]} 54. Ke4 {[%clk 0:00:17.8]} 54... Kxb4 {[%clk 0:00:18.9]}
55. Kd5 {[%clk 0:00:19.3]} 55... Ka5 {[%clk 0:00:12.9]} 56. Kd6 {[%clk
0:00:18.5]} 56... Kb6 {[%clk 0:00:13.6]} 57. Nxb5 {[%clk 0:00:18.1]} 57... Bxb5
{[%clk 0:00:14.3]} 58. Ke6 {[%clk 0:00:19.6]} 58... Be2 {[%clk 0:00:14.8]} 59.
f4 {[%clk 0:00:19.8]} 59... Kc6 {[%clk 0:00:15.9]} 60. Kxf6 {[%clk 0:00:21.2]}
60... Kd6 {[%clk 0:00:17.3]} 61. f5 {[%clk 0:00:22.2]} 61... Bd3 {[%clk
0:00:17.6]} 62. h5 {[%clk 0:00:20.7]} 62... Bb1 {[%clk 0:00:18.4]} 63. h6 {[%clk
0:00:18.9]} 63... Bc2 {[%clk 0:00:19.6]} 64. Kg5 {[%clk 0:00:18.4]} 64... Ke5
{[%clk 0:00:20.7]} 65. f6 {[%clk 0:00:18.7]} 65... Bg6 {[%clk 0:00:21.4]} 66. f7
{[%clk 0:00:17.9]} 66... Bxf7 {[%clk 0:00:23.3]} 0-1

[Event "*** Titled Tuesday Blitz"]
[Site "Chess.com"]
[Date "2018.05.01"]
[Round "1"]
[White "vovachesss"]
[Black "Msb2"]
[Result "1/2-1/2"]
[WhiteElo "2385"]
[BlackElo "2715"]
[TimeControl "180+2"]
[EndTime "13:10:47 PDT"]
[Termination "Game drawn by repetition"]

1. e4 {[%clk 0:02:55.5]} 1... e6 {[%clk 0:03:01]} 2. d4 {[%clk 0:02:52.9]} 2...
d5 {[%clk 0:03:02.9]} 3. Nc3 {[%clk 0:02:54.6]} 3... Nf6 {[%clk 0:03:03.9]} 4.
Bd3 {[%clk 0:02:52.9]} 4... c5 {[%clk 0:02:52.9]} 5. Nf3 {[%clk 0:02:46.8]} 5...
c4 {[%clk 0:02:52.8]} 6. Be2 {[%clk 0:02:46.1]} 6... Bb4 {[%clk 0:02:52.9]} 7.
exd5 {[%clk 0:02:45.3]} 7... exd5 {[%clk 0:02:53.3]} 8. O-O {[%clk 0:02:43.9]}
8... O-O {[%clk 0:02:54.2]} 9. Ne5 {[%clk 0:02:42.6]} 9... Bxc3 {[%clk
0:02:52.8]} 10. bxc3 {[%clk 0:02:42.6]} 10... Ne4 {[%clk 0:02:54.7]} 11. Qe1
{[%clk 0:02:27]} 11... Re8 {[%clk 0:02:49]} 12. f3 {[%clk 0:02:27]} 12... Nd6
{[%clk 0:02:48.2]} 13. Qf2 {[%clk 0:02:01.3]} 13... f6 {[%clk 0:02:48.1]} 14.
Ng4 {[%clk 0:02:01.7]} 14... Bxg4 {[%clk 0:02:46.9]} 15. fxg4 {[%clk 0:02:03.6]}
15... Ne4 {[%clk 0:02:48.4]} 16. Qe3 {[%clk 0:01:52.8]} 16... Nc6 {[%clk
0:02:33.1]} 17. Bf3 {[%clk 0:01:52.4]} 17... Kh8 {[%clk 0:02:23.1]} 18. Bxe4
{[%clk 0:01:49.5]} 18... Rxe4 {[%clk 0:02:25]} 19. Qf3 {[%clk 0:01:50.7]} 19...
h6 {[%clk 0:02:21.5]} 20. Rb1 {[%clk 0:01:47.9]} 20... Qd7 {[%clk 0:02:22.2]}
21. h3 {[%clk 0:01:45.9]} 21... b6 {[%clk 0:02:17.3]} 22. Bxh6 {[%clk
0:01:08.9]} 22... gxh6 {[%clk 0:02:18.1]} 23. Qxf6+ {[%clk 0:01:09.7]} 23... Kh7
{[%clk 0:02:19.7]} 24. g5 {[%clk 0:01:10.3]} 24... Qe6 {[%clk 0:01:49.9]} 25.
gxh6 {[%clk 0:00:34.7]} 25... Qxf6 {[%clk 0:01:48.9]} 26. Rxf6 {[%clk
0:00:36.5]} 26... Ne7 {[%clk 0:01:50.8]} 27. g4 {[%clk 0:00:34.2]} 27... Rg8
{[%clk 0:01:39.6]} 28. Rbf1 {[%clk 0:00:33.9]} 28... Rg6 {[%clk 0:01:40.1]} 29.
Rf7+ {[%clk 0:00:21.4]} 29... Kxh6 {[%clk 0:01:41.1]} 30. Kg2 {[%clk 0:00:23.3]}
30... Rg7 {[%clk 0:01:37.2]} 31. Kg3 {[%clk 0:00:20.5]} 31... Ng6 {[%clk
0:01:33.6]} 32. R7f5 {[%clk 0:00:18.7]} 32... Kh7 {[%clk 0:01:22.9]} 33. Rxd5
{[%clk 0:00:19.2]} 33... Re3+ {[%clk 0:01:23.5]} 34. Rf3 {[%clk 0:00:18.9]}
34... Rxf3+ {[%clk 0:01:13.4]} 35. Kxf3 {[%clk 0:00:20.8]} 35... Rf7+ {[%clk
0:01:15.3]} 36. Kg3 {[%clk 0:00:18.3]} 36... Re7 {[%clk 0:01:16.7]} 37. Kf3
{[%clk 0:00:18.1]} 37... Re1 {[%clk 0:01:02.4]} 38. Rd7+ {[%clk 0:00:17.9]}
38... Kh6 {[%clk 0:01:03.9]} 39. Rxa7 {[%clk 0:00:18.2]} 39... Rc1 {[%clk
0:00:43.6]} 40. Rc7 {[%clk 0:00:18.3]} 40... b5 {[%clk 0:00:43.5]} 41. h4 {[%clk
0:00:10.3]} 41... Nxh4+ {[%clk 0:00:41]} 42. Ke4 {[%clk 0:00:11.1]} 42... Rxc2
{[%clk 0:00:37.7]} 43. Rc5 {[%clk 0:00:10.5]} 43... Rxc3 {[%clk 0:00:38.3]} 44.
Rh5+ {[%clk 0:00:11.3]} 44... Kg6 {[%clk 0:00:39.8]} 45. Rxh4 {[%clk 0:00:12.8]}
45... Rg3 {[%clk 0:00:27.9]} 46. Kd5 {[%clk 0:00:11.4]} 46... Rg2 {[%clk
0:00:20.3]} 47. Kc5 {[%clk 0:00:06.3]} 47... Rb2 {[%clk 0:00:18.2]} 48. Rh3
{[%clk 0:00:03.8]} 48... Kg5 {[%clk 0:00:19.7]} 49. a4 {[%clk 0:00:05.1]} 49...
Rb3 {[%clk 0:00:17.4]} 50. Rh1 {[%clk 0:00:04.1]} 50... bxa4 {[%clk 0:00:13.9]}
51. Kxc4 {[%clk 0:00:04.5]} 51... Kxg4 {[%clk 0:00:15.3]} 52. Ra1 {[%clk
0:00:05]} 52... Rb8 {[%clk 0:00:10.7]} 53. Rxa4 {[%clk 0:00:03.3]} 53... Kf5
{[%clk 0:00:12.2]} 54. Ra1 {[%clk 0:00:04]} 54... Ke6 {[%clk 0:00:13.2]} 55.
Ra6+ {[%clk 0:00:03.7]} 55... Kd7 {[%clk 0:00:14.6]} 56. Kd5 {[%clk 0:00:04.5]}
56... Rb5+ {[%clk 0:00:15.5]} 57. Kc4 {[%clk 0:00:04]} 57... Rh5 {[%clk
0:00:17.4]} 58. d5 {[%clk 0:00:04.9]} 58... Rh1 {[%clk 0:00:18.1]} 59. Ra7+
{[%clk 0:00:03.8]} 59... Kd6 {[%clk 0:00:19.3]} 60. Ra6+ {[%clk 0:00:05.5]}
60... Kd7 {[%clk 0:00:20.9]} 61. Ra5 {[%clk 0:00:06.2]} 61... Rc1+ {[%clk
0:00:21.4]} 62. Kd4 {[%clk 0:00:07.6]} 62... Rd1+ {[%clk 0:00:22.7]} 63. Kc5
{[%clk 0:00:08.9]} 63... Rc1+ {[%clk 0:00:24.2]} 64. Kb6 {[%clk 0:00:10.2]}
64... Rd1 {[%clk 0:00:26.1]} 65. Kc5 {[%clk 0:00:10.9]} 65... Rc1+ {[%clk
0:00:27.6]} 66. Kd4 {[%clk 0:00:12]} 66... Rd1+ {[%clk 0:00:29.1]} 67. Ke5
{[%clk 0:00:13.3]} 67... Re1+ {[%clk 0:00:30.6]} 68. Kd4 {[%clk 0:00:14.5]}
68... Rd1+ {[%clk 0:00:32]} 1/2-1/2

[Event "*** Titled Tuesday Blitz"]
[Site "Chess.com"]
[Date "2018.05.01"]
[Round "1"]
[White "Yurovskykh_Oleksandr"]
[Black "Shtembuliak"]
[Result "0-1"]
[WhiteElo "2364"]
[BlackElo "2682"]
[TimeControl "180+2"]
[EndTime "13:11:04 PDT"]
[Termination "Shtembuliak won by checkmate"]

1. d4 {[%clk 0:03:00.3]} 1... g6 {[%clk 0:02:57.3]} 2. c4 {[%clk 0:02:58.9]}
2... Bg7 {[%clk 0:02:59.2]} 3. e4 {[%clk 0:03:00.2]} 3... d6 {[%clk 0:03:00]} 4.
Nc3 {[%clk 0:03:01.4]} 4... e5 {[%clk 0:03:01.4]} 5. d5 {[%clk 0:02:58.7]} 5...
a5 {[%clk 0:03:01.5]} 6. Bd3 {[%clk 0:02:56.8]} 6... Na6 {[%clk 0:03:02.4]} 7.
Nge2 {[%clk 0:02:57.7]} 7... Nc5 {[%clk 0:02:53.4]} 8. Bc2 {[%clk 0:02:58.4]}
8... h5 {[%clk 0:02:40.1]} 9. Rb1 {[%clk 0:02:33.2]} 9... h4 {[%clk 0:02:39.7]}
10. a3 {[%clk 0:02:27.5]} 10... h3 {[%clk 0:02:36.7]} 11. g3 {[%clk 0:02:27.7]}
11... Bg4 {[%clk 0:02:37.1]} 12. b4 {[%clk 0:02:21.2]} 12... axb4 {[%clk
0:02:35.1]} 13. axb4 {[%clk 0:02:23.1]} 13... Bf3 {[%clk 0:02:30.5]} 14. Rg1
{[%clk 0:02:14.1]} 14... Nd7 {[%clk 0:02:31.1]} 15. Qd3 {[%clk 0:02:14.5]} 15...
Bg2 {[%clk 0:02:31.7]} 16. Be3 {[%clk 0:02:02.7]} 16... Bh6 {[%clk 0:02:31.6]}
17. Kd2 {[%clk 0:01:53.2]} 17... Bxe3+ {[%clk 0:02:28.4]} 18. Qxe3 {[%clk
0:01:55.1]} 18... Ngf6 {[%clk 0:02:29.2]} 19. f3 {[%clk 0:01:53.2]} 19... c6
{[%clk 0:02:21.3]} 20. Ra1 {[%clk 0:01:38.1]} 20... cxd5 {[%clk 0:02:21.3]} 21.
cxd5 {[%clk 0:01:36.8]} 21... O-O {[%clk 0:02:21.6]} 22. Bd3 {[%clk 0:01:33.9]}
22... Kg7 {[%clk 0:02:02.1]} 23. Nb5 {[%clk 0:01:34.3]} 23... Qe7 {[%clk
0:02:01.2]} 24. Nec3 {[%clk 0:01:28.8]} 24... Nh7 {[%clk 0:01:59.3]} 25. Ra7
{[%clk 0:01:21.8]} 25... Ng5 {[%clk 0:01:55]} 26. Be2 {[%clk 0:01:17.6]} 26...
Rxa7 {[%clk 0:01:52.7]} 27. Nxa7 {[%clk 0:01:18.4]} 27... Ra8 {[%clk 0:01:38.3]}
28. Ncb5 {[%clk 0:00:56.3]} 28... Qf6 {[%clk 0:01:34.5]} 29. Rc1 {[%clk
0:00:25.4]} 29... Nxf3+ {[%clk 0:01:32]} 30. Bxf3 {[%clk 0:00:26]} 30... Qxf3
{[%clk 0:01:33.3]} 31. Qxf3 {[%clk 0:00:27.2]} 31... Bxf3 {[%clk 0:01:34.9]} 32.
Ke3 {[%clk 0:00:28.8]} 32... Bg2 {[%clk 0:01:33.3]} 33. Rc7 {[%clk 0:00:29.1]}
33... Nf6 {[%clk 0:01:34.4]} 34. Nxd6 {[%clk 0:00:25.2]} 34... Ng4+ {[%clk
0:01:33.7]} 35. Ke2 {[%clk 0:00:21.3]} 35... Rxa7 {[%clk 0:01:34.3]} 36. Rxf7+
{[%clk 0:00:22.3]} 36... Kh6 {[%clk 0:01:32.1]} 37. Rxb7 {[%clk 0:00:23.3]}
37... Ra2+ {[%clk 0:01:28.8]} 38. Kd3 {[%clk 0:00:24.7]} 38... Nxh2 {[%clk
0:01:18.2]} 39. Nf7+ {[%clk 0:00:20]} 39... Kh5 {[%clk 0:01:19.1]} 40. Nxe5
{[%clk 0:00:21.5]} 40... Nf1 {[%clk 0:01:05.6]} 41. Rh7+ {[%clk 0:00:21.6]}
41... Kg5 {[%clk 0:01:06.5]} 42. Nf7+ {[%clk 0:00:22.9]} 42... Kg4 {[%clk
0:01:06.1]} 43. d6 {[%clk 0:00:16.2]} 43... h2 {[%clk 0:01:06.7]} 44. Ne5+
{[%clk 0:00:16.8]} 44... Kxg3 {[%clk 0:01:07.1]} 45. d7 {[%clk 0:00:18.4]} 45...
Rd2+ {[%clk 0:01:06.7]} 46. Kc3 {[%clk 0:00:19.6]} 46... h1=Q {[%clk 0:01:05.7]}
47. Rxh1 {[%clk 0:00:21]} 47... Bxh1 {[%clk 0:01:06.9]} 48. b5 {[%clk
0:00:20.7]} 48... Bxe4 {[%clk 0:01:07.2]} 49. b6 {[%clk 0:00:22.1]} 49... Kf4
{[%clk 0:01:05.4]} 50. Nxg6+ {[%clk 0:00:21.8]} 50... Kf5 {[%clk 0:01:00]} 51.
Ne7+ {[%clk 0:00:22.9]} 51... Ke6 {[%clk 0:00:58.9]} 52. Nd5 {[%clk 0:00:20.3]}
52... Rd3+ {[%clk 0:00:44]} 53. Kc4 {[%clk 0:00:17.8]} 53... Kxd7 {[%clk
0:00:32.2]} 54. b7 {[%clk 0:00:18.6]} 54... Bxd5+ {[%clk 0:00:29]} 55. Kxd3
{[%clk 0:00:19.7]} 55... Bxb7 {[%clk 0:00:30.9]} 56. Ke2 {[%clk 0:00:20.7]}
56... Ng3+ {[%clk 0:00:31.3]} 57. Ke3 {[%clk 0:00:22]} 57... Kd6 {[%clk
0:00:27.4]} 58. Kd4 {[%clk 0:00:22.4]} 58... Nf5+ {[%clk 0:00:28.1]} 59. Kc4
{[%clk 0:00:23.1]} 59... Bc6 {[%clk 0:00:29.4]} 60. Kc3 {[%clk 0:00:24]} 60...
Kd5 {[%clk 0:00:30.4]} 61. Kd3 {[%clk 0:00:25.3]} 61... Bb5+ {[%clk 0:00:31]}
62. Kc3 {[%clk 0:00:26.8]} 62... Kc5 {[%clk 0:00:32.1]} 63. Kb3 {[%clk
0:00:27.1]} 63... Ne3 {[%clk 0:00:32]} 64. Kc3 {[%clk 0:00:28.2]} 64... Nd5+
{[%clk 0:00:33.1]} 65. Kb3 {[%clk 0:00:28.9]} 65... Bc4+ {[%clk 0:00:34.2]} 66.
Kc2 {[%clk 0:00:30.2]} 66... Kd4 {[%clk 0:00:34.7]} 67. Kd2 {[%clk 0:00:31.3]}
67... Bd3 {[%clk 0:00:35.1]} 68. Kc1 {[%clk 0:00:32.3]} 68... Kc3 {[%clk
0:00:33.6]} 69. Kd1 {[%clk 0:00:33.4]} 69... Nf6 {[%clk 0:00:31.3]} 70. Kc1
{[%clk 0:00:33.7]} 70... Be2 {[%clk 0:00:29.4]} 71. Kb1 {[%clk 0:00:34.6]} 71...
Nd5 {[%clk 0:00:30.7]} 72. Kc1 {[%clk 0:00:35.6]} 72... Nb4 {[%clk 0:00:31.5]}
73. Kb1 {[%clk 0:00:36.9]} 73... Nc2 {[%clk 0:00:32.1]} 74. Kc1 {[%clk
0:00:37.8]} 74... Bc4 {[%clk 0:00:33]} 75. Kb1 {[%clk 0:00:39.3]} 75... Bb3
{[%clk 0:00:34.1]} 76. Kc1 {[%clk 0:00:40.7]} 76... Ba2 {[%clk 0:00:35.4]} 77.
Kd1 {[%clk 0:00:41.8]} 77... Nd4 {[%clk 0:00:36.6]} 78. Ke1 {[%clk 0:00:42.3]}
78... Kd3 {[%clk 0:00:38.1]} 79. Kf2 {[%clk 0:00:43.1]} 79... Ne2 {[%clk
0:00:39.6]} 80. Kf3 {[%clk 0:00:44.4]} 80... Be6 {[%clk 0:00:40.5]} 81. Kf2
{[%clk 0:00:45.8]} 81... Bd5 {[%clk 0:00:41.5]} 82. Kf1 {[%clk 0:00:45.7]} 82...
Ke3 {[%clk 0:00:42.2]} 83. Ke1 {[%clk 0:00:47.2]} 83... Bb3 {[%clk 0:00:42.9]}
84. Kf1 {[%clk 0:00:48]} 84... Nf4 {[%clk 0:00:43.7]} 85. Ke1 {[%clk 0:00:49.2]}
85... Ng2+ {[%clk 0:00:44.6]} 86. Kf1 {[%clk 0:00:50.8]} 86... Kf3 {[%clk
0:00:46]} 87. Kg1 {[%clk 0:00:52.4]} 87... Kg3 {[%clk 0:00:45.9]} 88. Kf1 {[%clk
0:00:53.7]} 88... Bc4+ {[%clk 0:00:47]} 89. Kg1 {[%clk 0:00:55.2]} 89... Nf4
{[%clk 0:00:45.8]} 90. Kh1 {[%clk 0:00:56.7]} 90... Bd3 {[%clk 0:00:46.6]} 91.
Kg1 {[%clk 0:00:57.9]} 91... Nh3+ {[%clk 0:00:48]} 92. Kh1 {[%clk 0:00:59.3]}
92... Be4# {[%clk 0:00:49.5]} 0-1

[Event "*** Titled Tuesday Blitz"]
[Site "Chess.com"]
[Date "2018.05.01"]
[Round "1"]
[White "Margency"]
[Black "ABDELAZEEZ-M"]
[Result "1/2-1/2"]
[WhiteElo "2546"]
[BlackElo "2266"]
[TimeControl "180+2"]
[EndTime "13:11:25 PDT"]
[Termination "Game drawn by repetition"]

1. e4 {[%clk 0:02:55.1]} 1... c5 {[%clk 0:02:59.9]} 2. Nf3 {[%clk 0:02:24.2]}
2... Nc6 {[%clk 0:03:00.2]} 3. d4 {[%clk 0:02:25.2]} 3... cxd4 {[%clk
0:03:01.2]} 4. Nxd4 {[%clk 0:02:27.1]} 4... g6 {[%clk 0:03:02.1]} 5. c4 {[%clk
0:02:26.7]} 5... Bg7 {[%clk 0:03:03]} 6. Be3 {[%clk 0:02:27.6]} 6... Nf6 {[%clk
0:03:04.3]} 7. Nc3 {[%clk 0:02:28.5]} 7... d6 {[%clk 0:03:02.7]} 8. Be2 {[%clk
0:02:25.3]} 8... Bd7 {[%clk 0:03:03.3]} 9. O-O {[%clk 0:02:25.7]} 9... O-O
{[%clk 0:03:04.1]} 10. Qd2 {[%clk 0:02:26.3]} 10... Nxd4 {[%clk 0:03:04.9]} 11.
Bxd4 {[%clk 0:02:27.8]} 11... Bc6 {[%clk 0:03:06.2]} 12. f3 {[%clk 0:02:29]}
12... a5 {[%clk 0:03:06.9]} 13. b3 {[%clk 0:02:30.3]} 13... Nd7 {[%clk
0:03:07.4]} 14. Be3 {[%clk 0:02:31]} 14... Nc5 {[%clk 0:03:06.3]} 15. Rab1
{[%clk 0:02:32.3]} 15... Qb6 {[%clk 0:03:06.5]} 16. Rfc1 {[%clk 0:02:33.3]}
16... Rfc8 {[%clk 0:03:03.6]} 17. Rc2 {[%clk 0:02:34.4]} 17... Qd8 {[%clk
0:03:04]} 18. Nd1 {[%clk 0:02:30.9]} 18... h5 {[%clk 0:03:04.5]} 19. Nf2 {[%clk
0:02:31.2]} 19... Qf8 {[%clk 0:03:05.2]} 20. Nh3 {[%clk 0:02:32.2]} 20... Bd7
{[%clk 0:02:43.5]} 21. Nf4 {[%clk 0:02:27.4]} 21... Bc6 {[%clk 0:02:35.7]} 22.
Kh1 {[%clk 0:02:27.8]} 22... Kh7 {[%clk 0:02:36.4]} 23. Rd1 {[%clk 0:02:25.3]}
23... Qh8 {[%clk 0:02:36.9]} 24. Nh3 {[%clk 0:02:16.2]} 24... Ne6 {[%clk
0:02:23.5]} 25. Bf1 {[%clk 0:02:08.9]} 25... a4 {[%clk 0:02:18.9]} 26. b4 {[%clk
0:02:06.6]} 26... a3 {[%clk 0:02:18.4]} 27. c5 {[%clk 0:01:53.4]} 27... Ba4
{[%clk 0:02:16.9]} 28. Rdc1 {[%clk 0:01:44.4]} 28... Bxc2 {[%clk 0:02:17.2]} 29.
Rxc2 {[%clk 0:01:45.4]} 29... dxc5 {[%clk 0:02:16.8]} 30. bxc5 {[%clk
0:01:46.1]} 30... Rd8 {[%clk 0:02:16.8]} 31. Qc1 {[%clk 0:01:41]} 31... Bd4
{[%clk 0:02:16.2]} 32. Bc4 {[%clk 0:01:24]} 32... Bxe3 {[%clk 0:02:16.1]} 33.
Qxe3 {[%clk 0:01:25.2]} 33... Qd4 {[%clk 0:02:14.8]} 34. Qe1 {[%clk 0:01:16.2]}
34... Qd1 {[%clk 0:02:12]} 35. Rc1 {[%clk 0:01:14.8]} 35... Qxe1+ {[%clk
0:02:12.6]} 36. Rxe1 {[%clk 0:01:15.9]} 36... Nxc5 {[%clk 0:01:51.2]} 37. Bxf7
{[%clk 0:01:11.9]} 37... Kg7 {[%clk 0:01:51.9]} 38. Bc4 {[%clk 0:01:06.1]} 38...
Rd2 {[%clk 0:01:52.3]} 39. Nf4 {[%clk 0:01:04.1]} 39... Rad8 {[%clk 0:01:52]}
40. Nd5 {[%clk 0:00:46.8]} 40... e6 {[%clk 0:01:50.5]} 41. Ne3 {[%clk
0:00:47.7]} 41... b5 {[%clk 0:01:34.9]} 42. Bxb5 {[%clk 0:00:45.8]} 42... Rxa2
{[%clk 0:01:35.4]} 43. h4 {[%clk 0:00:39.3]} 43... Rb8 {[%clk 0:01:28.8]} 44.
Bc4 {[%clk 0:00:37.7]} 44... Rab2 {[%clk 0:01:29.2]} 45. Kh2 {[%clk 0:00:38.3]}
45... a2 {[%clk 0:01:27.3]} 46. Ra1 {[%clk 0:00:39.3]} 46... Ra8 {[%clk
0:01:27.5]} 47. Kg3 {[%clk 0:00:38.6]} 47... Kf6 {[%clk 0:01:24.5]} 48. Kf4
{[%clk 0:00:36.9]} 48... e5+ {[%clk 0:01:24.7]} 49. Kg3 {[%clk 0:00:38]} 49...
Ra4 {[%clk 0:01:23]} 50. Bg8 {[%clk 0:00:37]} 50... Ne6 {[%clk 0:01:23.1]} 51.
Nd5+ {[%clk 0:00:36.6]} 51... Kg7 {[%clk 0:01:22]} 52. Bxe6 {[%clk 0:00:38.1]}
52... Rb1 {[%clk 0:01:22.7]} 53. Rxa2 {[%clk 0:00:38.4]} 53... Rxa2 {[%clk
0:01:23.5]} 54. Nc3 {[%clk 0:00:40]} 54... Rab2 {[%clk 0:01:19.1]} 55. Nxb1
{[%clk 0:00:41]} 55... Rxb1 {[%clk 0:01:21]} 56. Bd5 {[%clk 0:00:40.7]} 56...
Kf6 {[%clk 0:01:22.9]} 57. Kf2 {[%clk 0:00:40.9]} 57... Rb2+ {[%clk 0:01:22.6]}
58. Kg3 {[%clk 0:00:42.1]} 58... g5 {[%clk 0:01:22.5]} 59. hxg5+ {[%clk
0:00:42.7]} 59... Kxg5 {[%clk 0:01:23.7]} 60. Kh3 {[%clk 0:00:44.2]} 60... h4
{[%clk 0:01:24.7]} 61. g3 {[%clk 0:00:44.1]} 61... hxg3 {[%clk 0:01:19.2]} 62.
Kxg3 {[%clk 0:00:45.3]} 62... Rb1 {[%clk 0:01:18.7]} 63. Be6 {[%clk 0:00:43.6]}
63... Rg1+ {[%clk 0:01:18.7]} 64. Kf2 {[%clk 0:00:44.8]} 64... Rd1 {[%clk
0:01:19.9]} 65. Kg3 {[%clk 0:00:45]} 65... Rd2 {[%clk 0:01:20.7]} 66. Bf5 {[%clk
0:00:45.4]} 66... Rd1 {[%clk 0:01:20.9]} 67. Bg4 {[%clk 0:00:45.2]} 67... Rd2
{[%clk 0:01:19.6]} 68. Bf5 {[%clk 0:00:46.2]} 68... Rd6 {[%clk 0:01:18.4]} 69.
Bg4 {[%clk 0:00:47]} 69... Rh6 {[%clk 0:01:19]} 70. Bf5 {[%clk 0:00:47.8]} 70...
Rh8 {[%clk 0:01:18.1]} 71. Bg4 {[%clk 0:00:48.9]} 71... Rb8 {[%clk 0:01:08.3]}
72. Bf5 {[%clk 0:00:49.8]} 72... Rb1 {[%clk 0:01:06.6]} 73. Bg4 {[%clk 0:00:51]}
73... Rh1 {[%clk 0:01:02.6]} 74. Bf5 {[%clk 0:00:51.6]} 74... Rh4 {[%clk
0:01:03.3]} 75. Bg4 {[%clk 0:00:52.2]} 75... Rh1 {[%clk 0:00:58.2]} 76. Bf5
{[%clk 0:00:53.2]} 76... Rg1+ {[%clk 0:00:57.3]} 77. Kf2 {[%clk 0:00:54.1]}
77... Rh1 {[%clk 0:00:54.2]} 78. Kg3 {[%clk 0:00:55.2]} 78... Rh8 {[%clk
0:00:53.2]} 79. Bg4 {[%clk 0:00:56.1]} 79... Rg8 {[%clk 0:00:54.5]} 80. Bf5
{[%clk 0:00:53.9]} 80... Kf6+ {[%clk 0:00:55.4]} 81. Bg4 {[%clk 0:00:54.9]}
81... Rg7 {[%clk 0:00:56.7]} 82. f4 {[%clk 0:00:55.6]} 82... Rc7 {[%clk
0:00:53.9]} 83. fxe5+ {[%clk 0:00:55]} 83... Kxe5 {[%clk 0:00:55.1]} 84. Bf5
{[%clk 0:00:55.6]} 84... Rg7+ {[%clk 0:00:55.5]} 85. Kf3 {[%clk 0:00:56.7]}
85... Rb7 {[%clk 0:00:55.7]} 86. Kg4 {[%clk 0:00:56.1]} 86... Rg7+ {[%clk
0:00:55.8]} 87. Kf3 {[%clk 0:00:57.2]} 87... Rg1 {[%clk 0:00:54.2]} 88. Kf2
{[%clk 0:00:56.2]} 88... Rc1 {[%clk 0:00:54.7]} 89. Kf3 {[%clk 0:00:57.4]} 89...
Rg1 {[%clk 0:00:53.1]} 90. Kf2 {[%clk 0:00:58.2]} 90... Rg7 {[%clk 0:00:51.8]}
91. Kf3 {[%clk 0:00:59.4]} 1/2-1/2